bitfinex/quotes_ETHUSD_20251009
["timestamp","ask_amount","ask_price","bid_price","bid_amount"]
[1760051746258,0.65648397,4369.2,4369.1,0.01225]
[1760051746462,2.05548397,4369.2,4369.1,0.01225]
[1760051747081,2.22738397,4369.2,4369.1,0.01225]
[1760051748110,5.22634601,4369.2,4369.1,0.01225]
[1760051748313,5.20346204,4369.2,4369.1,0.01225]
[1760051748678,2.91471353,4369.2,4369.1,0.01225]
[1760051748892,3.0529975,4369.2,4369.1,0.01225]
[1760051749306,5.34174601,4369.2,4369.1,0.01225]
[1760051749609,5.31886204,4369.2,4369.1,0.01225]
[1760051749789,3.03011353,4369.2,4369.1,0.01225]
[1760051749993,3.0529975,4369.2,4369.1,0.01225]
[1760051750392,5.34174601,4369.2,4369.1,0.01225]
[1760051750593,5.31886204,4369.2,4369.1,0.01225]
[1760051751620,3.03011353,4369.2,4369.1,0.01225]
[1760051751787,3.0529975,4369.2,4369.1,0.01225]
[1760051751984,5.34174601,4369.2,4369.1,1e-08]
[1760051752188,11.08344728,4369.2,4369.1,1e-08]
[1760051752484,10.17340555,4369.2,4369.1,1e-08]
[1760051752708,28.52840555,4369.2,4369.1,1e-08]
[1760051752915,12.89815755,4369.2,4369.1,1e-08]
[1760051753095,10.17340555,4369.2,4369.1,1e-08]
[1760051753417,18.63246289,4369.2,4369.1,1e-08]
[1760051754717,18.51644728,4369.2,4369.1,1e-08]
[1760051756039,18.62991158,4369.2,4369.1,1e-08]
[1760051756444,19.11847184,4369.2,4369.1,1e-08]
[1760051757051,19.11847184,4369.2,4368.7,0.001]
[1760051757237,19.11847184,4369.2,4367.1,0.005]
[1760051757238,6.7679819,4367.2,4367.1,0.005]
[1760051757446,15.6369819,4367.2,4367.1,0.005]
[1760051757761,11.96679666,4367.2,4367.1,0.005]
[1760051757981,0.6336,4367.2,4367.1,0.005]
[1760051758185,9.678,4367.2,4367.1,0.005]
[1760051758875,0.808,4367.2,4367.1,0.005]
[1760051759076,0.83088397,4367.2,4367.1,0.005]
[1760051759251,7.32188397,4367.2,4367.1,0.005]
[1760051759448,10.70993963,4367.2,4367.1,0.005]
[1760051760143,1.83793963,4367.2,4367.1,0.005]
[1760051760350,11.99368063,4367.2,4367.1,0.005]
[1760051760574,11.97079666,4367.2,4367.1,0.005]
[1760051762282,15.8153819,4367.2,4367.1,0.005]
[1760051763361,17.7353819,4367.2,4367.1,0.006]
[1760051763541,18.22326041,4367.2,4367.1,0.006]
[1760051763746,0.6336,4367.0,4366.6,0.001]
[1760051763947,6.76824409,4366.7,4366.6,0.001]
[1760051764178,16.29524409,4366.7,4366.6,0.001]
[1760051764561,16.46964409,4366.7,4366.6,0.001]
[1760051765476,16.56139194,4366.7,4366.6,0.001]
[1760051765787,18.81316239,4366.7,4366.6,0.001]
[1760051766284,25.31116239,4366.7,4366.6,0.001]
[1760051767963,2.92386864,4366.3,4366.2,0.001]
[1760051768288,15.67033785,4366.3,4366.2,0.001]
[1760051768474,16.30983912,4366.3,4366.2,0.001]
[1760051768676,16.92928517,4366.3,4366.2,0.001]
[1760051768988,17.02104459,4366.3,4366.2,0.001]
[1760051769789,24.62545935,4366.3,4366.2,0.001]
[1760051770993,24.62545935,4366.3,4364.1,0.01]
[1760051770994,0.6336,4366.0,4364.1,0.01]
[1760051771178,2.51114578,4365.2,4364.1,0.01]
[1760051771489,9.75578397,4365.2,4364.1,0.01]
[1760051771790,12.3094,4365.2,4364.1,0.01]
[1760051772155,3.4304,4365.2,4364.1,0.01]
[1760051772356,14.62312975,4365.2,4364.1,0.01]
[1760051772670,17.33833851,4365.2,4364.1,0.01]
[1760051775305,0.6336,4365.1,4364.1,0.01]
[1760051775620,2.92497069,4364.2,4364.1,0.01]
[1760051775902,11.82685466,4364.2,4364.1,0.01]
[1760051776112,12.07066486,4364.2,4364.1,0.01]
[1760051776315,15.42685819,4364.2,4364.1,0.01]
[1760051776719,6.54785819,4364.2,4364.1,0.01]
[1760051776889,24.96085819,4364.2,4364.1,0.01]
[1760051778175,25.44658078,4364.2,4364.1,0.01]
[1760051778370,7.03358078,4364.2,4364.1,0.01]
[1760051778616,25.44758078,4364.2,4364.1,0.01]
[1760051779523,35.2710088,4364.2,4364.1,0.01]
[1760051780308,4.74221009,4364.2,4364.1,0.01]
[1760051780515,3.30601676,4364.2,4364.1,0.01]
[1760051780717,9.35617814,4364.2,4364.1,0.01]
[1760051781012,21.73601676,4364.2,4364.1,0.01]
[1760051781417,3.30601676,4364.2,4364.1,0.01]
[1760051781638,21.75890073,4364.2,4364.1,0.01]
[1760051781835,23.98408485,4364.2,4364.1,0.01]
[1760051782202,26.27545554,4364.2,4364.1,0.01]
[1760051782402,36.09888356,4364.2,4364.1,0.01]
[1760051782620,17.66888356,4364.2,4364.1,0.01]
[1760051783339,36.09888356,4364.2,4364.1,0.01]
[1760051784020,17.66888356,4364.2,4364.1,0.01]
[1760051784189,36.09888356,4364.2,4364.1,0.01]
[1760051785024,7.84545554,4364.2,4364.1,0.01]
[1760051785187,24.02638745,4364.2,4364.1,0.01]
[1760051786808,3.30601676,4364.2,4364.1,0.01]
[1760051787124,3.32890073,4364.2,4364.1,0.01]
[1760051787328,21.75890073,4364.2,4364.1,0.01]
[1760051787515,21.73601676,4364.2,4364.1,0.01]
[1760051787694,23.98778721,4364.2,4364.1,0.01]
[1760051788405,5.55778721,4364.2,4364.1,0.01]
[1760051788611,21.73601676,4364.2,4364.1,0.01]
[1760051788818,24.02738745,4364.2,4364.1,0.01]
[1760051789215,21.73601676,4364.2,4364.1,0.01]
[1760051789418,24.02738745,4364.2,4364.1,0.01]
[1760051790046,21.73601676,4364.2,4364.1,0.01]
[1760051790634,3.30601676,4364.2,4364.1,0.01]
[1760051790938,3.30601676,4364.2,4363.1,0.01]
[1760051790939,3.32890073,4364.2,4363.1,0.01]
[1760051791236,5.87038023,4363.2,4363.1,0.01]
[1760051791437,11.34902026,4363.2,4363.1,0.01]
[1760051791645,6.13832026,4363.2,4363.1,0.01]
[1760051791949,26.33729656,4363.2,4363.1,0.01]
[1760051792120,25.11801353,4363.2,4363.1,0.01]
[1760051792454,27.36978398,4363.2,4363.1,0.01]
[1760051792654,15.44978398,4363.2,4363.1,0.01]
[1760051792949,27.37078398,4363.2,4363.1,0.01]
[1760051795244,27.37078398,4363.2,4363.1,0.01]
[1760051795906,25.07888813,4363.2,4363.1,0.01]
[1760051796110,27.37078398,4363.2,4363.1,0.01]
[1760051799145,28.99615275,4363.2,4363.1,0.01]
[1760051799349,27.37078398,4363.2,4363.1,0.01]
[1760051800146,10.56615275,4363.2,4363.1,0.01]
[1760051800347,26.7443823,4363.2,4363.1,0.01]
[1760051800747,8.3143823,4363.2,4363.1,0.01]
[1760051801046,1.92,4363.1,4362.5,0.009766]
[1760051801250,0.6336,4362.6,4362.5,0.009766]
[1760051801436,9.56820656,4362.6,4362.5,0.009766]
[1760051801641,13.18376888,4362.6,4362.5,0.009766]
[1760051801948,13.87249229,4362.6,4362.5,0.009766]
[1760051802252,15.09574864,4362.6,4362.5,0.009766]
[1760051803151,12.71074864,4362.6,4362.5,0.009766]
[1760051803371,4.98249229,4362.6,4362.5,0.009766]
[1760051803571,12.792346,4362.6,4362.5,0.009766]
[1760051804746,3.903346,4362.6,4362.5,0.009766]
[1760051804965,12.81522997,4362.6,4362.5,0.009766]
[1760051805269,12.792346,4362.6,4362.5,0.009766]
[1760051806557,14.01560235,4362.6,4362.5,0.009766]
[1760051806730,0.6336,4362.3,4362.1,0.01]
[1760051806938,10.79195237,4362.2,4362.1,0.01]
[1760051807252,10.9443684,4362.2,4362.1,0.01]
[1760051807643,5.12817879,4362.2,4362.1,0.01]
[1760051807830,4.41625086,4362.2,4362.1,0.01]
[1760051808037,22.40613483,4362.2,4362.1,0.01]
[1760051808246,22.38325086,4362.2,4362.1,0.01]
[1760051808560,9.71862259,4362.2,4362.1,0.01]
[1760051808761,10.53518643,4362.2,4362.1,0.01]
[1760051808965,12.92018643,4362.2,4362.1,0.01]
[1760051809735,1.29462259,4362.2,4362.1,0.01]
[1760051810040,7.10750656,4362.2,4362.1,0.01]
[1760051810356,7.08462259,4362.2,4362.1,0.01]
[1760051810524,7.79862259,4362.2,4362.1,0.01]
[1760051810719,10.18362259,4362.2,4362.1,0.01]
[1760051811656,7.79862259,4362.2,4362.1,0.01]
[1760051811831,7.79762259,4362.2,4362.1,0.01]
[1760051812036,10.18262259,4362.2,4362.1,0.01]
[1760051813521,10.69372336,4362.2,4362.1,0.01]
[1760051815263,10.18262259,4362.2,4362.1,0.01]
[1760051817663,1.29462259,4362.2,4362.1,0.01]
[1760051817840,9.6949,4362.2,4362.1,0.01]
[1760051818039,10.18062259,4362.2,4362.1,0.01]
[1760051820172,1.11932259,4362.2,4362.1,0.01]
[1760051820331,0.6336,4362.2,4362.1,0.01]
[1760051820531,6.54,4362.2,4362.1,0.01]
[1760051820731,5.9064,4362.2,4362.1,2.3024738]
[1760051820951,0.1144,4362.2,4362.1,2.3024738]
[1760051821169,0.748,4362.2,4362.1,2.3024738]
[1760051821376,0.13728397,4362.5,4362.4,2.29231615]
[1760051821533,0.1144,4362.9,4362.3,0.02292368]
[1760051821732,5.084,4362.8,4362.7,2.29215852]
[1760051822034,8.884,4362.8,4362.7,2.29215852]
[1760051822332,0.1756,4363.1,4362.6,0.1144]
[1760051822539,1.26188397,4363.0,4362.9,2.29205345]
[1760051822744,2.92748397,4363.0,4362.9,2.29205345]
[1760051823066,7.25408397,4363.0,4362.9,2.29205345]
[1760051823244,7.25408397,4363.0,4362.6,0.1144]
[1760051823245,6.5,4363.0,4362.6,0.1144]
[1760051823445,0.93400182,4363.2,4363.1,2.29194838]
[1760051823656,0.5144,4363.2,4363.1,2.29194838]
[1760051824049,0.5144,4363.2,4363.1,2.76504838]
[1760051824363,1.2964,4363.2,4363.1,2.76504838]
[1760051824770,0.5144,4363.2,4363.1,2.76504838]
[1760051824944,0.5144,4363.2,4363.1,3.3874483]
[1760051829672,0.5164,4363.2,4363.1,3.3874483]
[1760051830536,0.5164,4363.2,4363.1,3.2730483]
[1760051833237,0.5164,4363.2,4363.1,4.21194838]
[1760051834295,0.5164,4363.2,4363.1,1.92]
[1760051834440,0.6887,4363.2,4363.1,1.92]
[1760051834638,0.5164,4363.2,4363.1,1.92]
[1760051834839,0.5164,4363.2,4363.1,4.21194838]
[1760051835436,0.5164,4363.2,4363.1,4.68504838]
[1760051836076,1.6174,4363.2,4363.1,4.68504838]
[1760051836246,2.6114,4363.2,4363.1,4.68504838]
[1760051838168,2.6114,4363.2,4363.1,4.21194838]
[1760051840494,2.6114,4363.2,4363.1,4.32634838]
[1760051841106,2.6114,4363.2,4363.1,2.40634838]
[1760051842278,3.245,4363.2,4363.1,0.1144]
[1760051842499,0.6336,4363.1,4362.8,0.1144]
[1760051842699,0.6336,4363.1,4362.6,2.40659353]
[1760051842700,0.02288397,4363.0,4362.6,2.40659353]
[1760051843065,0.1723,4362.9,4362.6,2.40660689]
[1760051843264,0.02288397,4363.0,4362.7,2.29215414]
[1760051843566,0.8059,4362.9,4362.7,2.29215414]
[1760051843888,0.6336,4362.7,4362.6,2.29221106]
[1760051844197,0.6336,4362.8,4362.1,0.5985]
[1760051844359,0.1144,4362.9,4362.1,0.5985]
[1760051844360,0.6336,4362.6,4362.1,0.5985]
[1760051844565,0.6336,4362.6,4362.5,2.29226361]
[1760051845294,0.65648397,4363.1,4362.5,0.4731]
[1760051845460,8.102,4362.6,4362.5,2.87976361]
[1760051850664,0.5164,4363.2,4363.0,2.29200091]
[1760051850871,0.5164,4363.2,4363.1,2.87604838]
[1760051851177,0.9984,4363.2,4363.1,2.87604838]
[1760051851699,0.9984,4363.2,4363.1,2.89896786]
[1760051852117,0.5164,4363.2,4363.1,2.87604838]
[1760051852285,0.5164,4363.2,4363.1,3.39285331]
[1760051852610,0.0164,4363.2,4363.1,3.39285331]
[1760051854317,0.5164,4363.2,4363.1,3.39285331]
[1760051855782,1e-08,4363.2,4363.1,5.22137279]
[1760051855991,1e-08,4363.2,4363.1,5.19845331]
[1760051856899,0.007,4364.2,4364.1,2.2914232]
[1760051857417,0.66648397,4364.9,4364.1,0.4697]
[1760051857607,2.747,4364.5,4364.4,2.29126569]
[1760051857804,5.086,4364.6,4364.5,2.29121319]
[1760051858196,0.01,4364.9,4364.4,2.29125989]
[1760051858387,0.01,4364.9,4364.7,2.2911082]
[1760051858587,0.01,4364.9,4364.8,2.31396626]
[1760051858800,0.01,4364.9,4364.8,2.78366626]
[1760051859817,0.002,4365.6,4365.0,2.29095074]
[1760051860123,0.002,4365.6,4365.0,2.83105397]
[1760051860421,0.002,4365.6,4365.0,3.32366347]
[1760051861721,0.002,4365.6,4365.0,3.30075397]
[1760051863091,0.002,4365.6,4365.0,2.29095074]
[1760051863299,0.002,4365.6,4365.0,2.76065074]
[1760051863497,0.041,4365.5,4365.0,2.76065074]
[1760051863833,0.06388397,4365.5,4365.0,2.76065074]
[1760051863986,0.02288397,4365.5,4365.0,2.76065074]
[1760051864186,0.589,4365.4,4365.0,2.76065074]
[1760051865524,0.61188397,4365.4,4365.0,2.29095074]
[1760051865829,0.61188397,4365.4,4365.0,2.40535074]
[1760051866913,0.589,4365.4,4365.0,2.40535074]
[1760051867928,0.002,4365.6,4365.0,2.40535074]
[1760051868140,0.01,4365.9,4365.1,2.22728151]
[1760051868296,0.01,4365.9,4365.8,2.29053094]
[1760051868698,1e-08,4365.9,4365.8,4.67283624]
[1760051869505,1e-08,4365.9,4365.8,4.64993094]
[1760051872227,1e-08,4366.0,4365.9,4.21047848]
[1760051872400,1e-08,4366.0,4365.9,4.64987848]
[1760051872599,1e-08,4366.0,4365.9,5.00823356]
[1760051873933,1e-08,4366.0,4365.9,4.56883356]
[1760051874109,1e-08,4366.0,4365.9,4.64987848]
[1760051874311,1e-08,4366.0,4365.9,2.72987848]
[1760051875625,1e-08,4366.0,4365.9,2.75278326]
[1760051875830,1e-08,4366.0,4365.9,2.72987848]
[1760051878051,1e-08,4366.0,4365.9,2.84427848]
[1760051878434,1e-08,4366.0,4365.9,4.76427848]
[1760051881126,1e-08,4366.0,4365.9,11.24227848]
[1760051884161,1e-08,4366.0,4365.9,4.76427848]
[1760051890667,1e-08,4366.0,4365.9,11.23927848]
[1760051893467,1e-08,4366.0,4365.9,15.08995153]
[1760051900283,1e-08,4366.0,4365.9,17.47195153]
[1760051900486,0.002,4366.8,4365.9,17.47195153]
[1760051900787,1e-08,4366.9,4366.8,8.06067946]
[1760051900956,1e-08,4366.9,4366.8,14.53267946]
[1760051901155,1e-08,4366.9,4366.8,14.98167946]
[1760051903677,1e-08,4366.9,4366.8,14.98067946]
[1760051905825,1e-08,4366.9,4366.8,14.97967946]
[1760051910493,1e-08,4366.9,4366.8,15.09407946]
[1760051911598,1e-08,4366.9,4366.8,14.51341027]
[1760051912527,1e-08,4366.9,4366.8,16.89241027]
[1760051913318,1e-08,4366.9,4366.8,16.89341027]
[1760051913517,0.00200001,4366.9,4366.8,16.89341027]
[1760051914215,2.397,4368.7,4367.8,2.28948211]
[1760051914416,2.397,4368.7,4367.8,5.58238079]
[1760051914611,2.397,4368.7,4367.8,6.10758597]
[1760051914924,1e-08,4367.9,4367.8,17.76458983]
[1760051915136,1e-08,4367.9,4367.8,14.49458597]
[1760051920141,1e-08,4367.9,4367.8,17.76458983]
[1760051924834,1e-08,4367.9,4367.8,14.49458597]
[1760051925654,1e-08,4367.9,4367.8,17.76458983]
[1760051927442,1e-08,4367.9,4367.8,17.65018983]
[1760051927628,1e-08,4367.9,4367.8,17.76458983]
[1760051927827,0.005,4368.9,4367.9,4.2094297]
[1760051928028,0.005,4368.9,4368.8,3.49420386]
[1760051928254,0.005,4368.9,4368.8,12.36256192]
[1760051928450,0.005,4368.9,4368.8,12.83736192]
[1760051930346,0.002,4369.2,4368.8,14.64296192]
[1760051930547,0.002,4369.2,4369.1,5.55880475]
[1760051930714,0.002,4369.2,4369.1,12.14120475]
[1760051930917,0.002,4369.2,4369.1,12.61600475]
[1760051931749,0.002,4369.2,4369.1,9.34600089]
[1760051931953,0.002,4369.2,4369.1,12.61600475]
[1760051932644,0.002,4369.2,4369.1,6.14800475]
[1760051932814,0.002,4369.2,4369.1,12.61700475]
[1760051933015,0.002,4369.2,4369.1,17.80700861]
[1760051937863,0.002,4369.2,4369.1,14.53700475]
[1760051938973,0.002,4369.2,4369.1,8.06800475]
[1760051939150,0.002,4369.2,4369.1,14.53500475]
[1760051941270,0.002,4369.2,4369.1,4.65460089]
[1760051942077,0.002,4369.2,4369.1,11.12060089]
[1760051944386,0.002,4369.2,4369.1,14.39060475]
[1760051946160,0.002,4369.2,4369.1,4.65460089]
[1760051946359,0.002,4369.2,4369.1,11.11960089]
[1760051946985,0.002,4369.2,4369.1,4.65460089]
[1760051947170,0.002,4369.2,4369.1,11.11960089]
[1760051948881,0.002,4369.2,4369.1,4.65460089]
[1760051949083,0.002,4369.2,4369.1,11.11960089]
[1760051949896,20.002,4369.2,4369.1,11.11960089]
[1760051951195,20.002,4369.2,4369.1,4.65460089]
[1760051951397,20.002,4369.2,4369.1,11.23300089]
[1760051953481,20.002,4369.2,4369.1,11.23200089]
[1760051954804,20.002,4369.2,4369.1,14.50200475]
[1760051955016,7.60634363,4369.2,4369.1,14.50200475]
[1760051955228,0.002,4369.7,4369.6,2.28853899]
[1760051955428,0.002,4369.7,4369.6,12.04442823]
[1760051955707,0.002,4369.7,4369.6,12.58174285]
[1760051958808,0.002,4369.7,4369.6,6.11874285]
[1760051959010,0.002,4369.7,4369.6,12.58174285]
[1760051963187,0.002,4369.7,4369.6,2.40293899]
[1760051963413,0.002,4369.7,4369.6,2.28853899]
[1760051974735,0.002,4369.7,4369.6,8.51252994]
[1760051974948,0.002,4369.7,4369.6,9.58119837]
[1760051975247,0.002,4369.7,4369.6,8.48964456]
[1760051977751,0.002,4369.7,4369.6,8.60404456]
[1760051979150,0.002,4369.7,4369.6,15.75427389]
[1760051980142,0.002,4369.7,4369.6,15.06704456]
[1760051981359,0.002,4369.7,4369.6,11.22063899]
[1760051985886,0.002,4369.7,4369.6,4.75763899]
[1760051986059,0.002,4369.7,4369.6,11.21963899]
[1760051994566,0.002,4369.7,4369.6,2.83763899]
[1760051994776,0.002,4369.7,4369.6,9.29963899]
[1760052011713,20.0,4370.0,4369.9,2.28838188]
[1760052011913,0.002,4370.6,4370.0,2.28832951]
[1760052012137,0.002,4370.6,4370.5,2.50986772]
[1760052012355,0.002,4370.6,4370.5,11.00626772]
[1760052012637,0.002,4370.6,4370.5,11.47736772]
[1760052014131,0.002,4370.6,4370.5,2.97510504]
[1760052014518,0.1556,4370.6,4370.5,0.68703732]
[1760052014814,1.45136,4370.6,4370.5,0.68703732]
[1760052015013,0.6336,4370.5,4370.0,2.28832332]
[1760052015323,6.461,4370.4,4370.1,2.28827199]
[1760052015529,6.461,4370.4,4369.5,1.92]
[1760052015530,0.1536,4370.3,4369.5,1.92]
[1760052015938,0.1536,4370.3,4370.1,2.28827111]
[1760052016245,0.72482,4370.2,4370.0,2.28832226]
[1760052016542,6.461,4370.1,4370.0,2.28832951]
[1760052017966,0.72482,4370.2,4370.1,2.28827715]
[1760052018151,6.461,4370.2,4370.1,2.28827715]
[1760052020058,6.6146,4370.2,4370.1,2.28827715]
[1760052020260,6.461,4370.2,4370.1,2.28827715]
[1760052021774,6.6146,4370.2,4370.1,2.28827715]
[1760052022874,6.6146,4370.2,4370.0,2.28831518]
[1760052023034,0.81506,4370.1,4370.0,2.28831518]
[1760052023242,0.81706,4370.1,4370.0,2.28831518]
[1760052023987,0.81706,4370.1,4369.5,0.68732537]
[1760052023988,0.81706,4370.1,4369.6,2.28853899]
[1760052024145,0.77786,4370.1,4369.6,2.28853899]
[1760052024336,0.1536,4370.0,4369.1,0.001]
[1760052024686,0.1144,4369.8,4369.5,2.28854273]
[1760052024900,0.1144,4369.8,4369.1,0.1154]
[1760052024901,6.3931,4369.7,4369.1,0.1154]
[1760052025316,6.3931,4369.7,4369.1,0.80277419]
[1760052025469,6.3931,4369.7,4369.6,2.28853899]
[1760052026868,6.3931,4369.7,4369.5,2.28858788]
[1760052027072,0.94833,4369.6,4369.5,2.28858788]
[1760052028172,0.94833,4369.6,4369.4,2.28863772]
[1760052028401,0.1607,4369.5,4369.4,2.28863772]
[1760052028873,0.78763,4369.6,4369.5,2.28859137]
[1760052029075,6.5754,4369.6,4369.5,2.28859137]
[1760052030082,0.1144,4369.6,4369.5,2.28859137]
[1760052030527,0.002,4370.1,4370.0,2.28832951]
[1760052030675,1.136,4370.1,4370.0,2.28832951]
[1760052031916,6.464,4370.1,4370.0,2.28832951]
[1760052032119,6.464,4370.1,4370.0,2.75552951]
[1760052032120,0.002,4370.1,4370.0,2.75552951]
[1760052032841,0.002,4370.1,4370.0,2.28832951]
[1760052035200,0.002,4370.1,4369.9,2.28838064]
[1760052035405,0.67639,4370.1,4370.0,2.28832951]
[1760052036104,0.1675,4370.1,4370.0,2.28832951]
[1760052037898,0.002,4370.1,4370.0,2.28832951]
[1760052038633,0.1675,4370.1,4370.0,2.28832951]
[1760052039543,0.002,4370.1,4370.0,2.28832951]
[1760052041129,0.002,4370.1,4370.0,2.75552951]
[1760052042252,0.002,4370.1,4370.0,2.28832951]
[1760052043315,0.002,4370.1,4370.0,5.55577018]
[1760052043807,0.002,4370.1,4370.0,2.40272951]
[1760052044551,0.002,4370.1,4370.0,2.40372951]
[1760052045665,0.002,4370.1,4370.0,2.87092951]
[1760052045867,0.002,4370.1,4370.0,3.72504645]
[1760052046726,0.002,4370.1,4370.0,3.83944645]
[1760052047143,0.002,4370.1,4370.0,5.75944645]
[1760052048743,1e-08,4370.2,4370.1,2.28827715]
[1760052049051,1e-08,4370.2,4370.1,13.03116412]
[1760052049433,1e-08,4370.2,4370.1,13.12277727]
[1760052053729,1e-08,4370.2,4370.1,3.3943366]
[1760052053935,1e-08,4370.2,4370.1,6.66177727]
[1760052055760,1e-08,4370.2,4370.1,6.20847727]
[1760052055961,1e-08,4370.2,4370.1,6.66177727]
[1760052060792,1e-08,4370.2,4370.1,2.3798903]
[1760052064124,0.6336,4370.1,4370.0,0.001]
[1760052064435,4.06764067,4370.1,4370.0,0.001]
[1760052066595,0.8002,4370.1,4370.0,0.001]
[1760052066795,10.11570826,4370.1,4370.0,0.001]
[1760052069184,7.73570826,4370.1,4370.0,0.001]
[1760052069401,10.11570826,4370.1,4370.0,0.001]
[1760052070817,13.38314893,4370.1,4370.0,0.001]
[1760052071433,15.30314893,4370.1,4370.0,0.001]
[1760052073202,17.59142608,4370.1,4370.0,0.001]
[1760052074530,15.30314893,4370.1,4370.0,0.001]
[1760052074842,3.19570826,4370.1,4370.0,0.001]
[1760052075341,12.03670826,4370.1,4370.0,0.001]
[1760052076937,17.59242608,4370.1,4370.0,0.001]
[1760052083729,3.19570826,4370.1,4370.0,0.001]
[1760052083931,12.03670826,4370.1,4370.0,0.001]
[1760052092034,14.32498541,4370.1,4370.0,0.001]
[1760052092485,14.81754542,4370.1,4370.0,0.001]
[1760052093397,15.43372335,4370.1,4370.0,0.001]
[1760052095090,14.81754542,4370.1,4370.0,0.001]
[1760052095455,18.6664046,4370.1,4370.0,0.001]
[1760052096658,19.48296844,4370.1,4370.0,0.001]
[1760052096881,18.6664046,4370.1,4370.0,0.001]
[1760052097096,18.75809125,4370.1,4370.0,0.001]
[1760052099372,19.57922349,4370.1,4370.0,0.001]
[1760052100381,26.67922349,4370.1,4370.0,0.001]
[1760052100581,25.85809125,4370.1,4370.0,0.001]
[1760052101719,35.38312588,4370.1,4370.0,0.001]
[1760052102405,12.5346667,4370.1,4370.0,0.001]
[1760052102717,22.62596886,4370.1,4370.0,0.001]
[1760052103092,22.53428221,4370.1,4370.0,0.001]
[1760052106715,21.91858005,4370.1,4370.0,0.001]
[1760052107213,22.01026271,4370.1,4370.0,0.001]
[1760052108798,13.16826271,4370.1,4370.0,0.001]
[1760052108995,22.53445705,4370.1,4370.0,0.001]
[1760052109200,10.31279464,4370.1,4370.0,0.001]
[1760052109406,0.65919464,4370.1,4370.0,0.001]
[1760052109602,9.0086,4370.1,4370.0,0.001]
[1760052109828,12.05479464,4370.1,4370.0,0.001]
[1760052110249,10.13479464,4370.1,4370.0,0.001]
[1760052110548,12.05479464,4370.1,4370.0,0.001]
[1760052112521,14.34307179,4370.1,4370.0,0.001]
[1760052112855,16.04872274,4370.1,4370.0,0.001]
[1760052113713,13.76044559,4370.1,4370.0,0.001]
[1760052114320,12.05479464,4370.1,4370.0,0.001]
[1760052118343,9.67379464,4370.1,4370.0,0.001]
[1760052118529,12.05479464,4370.1,4370.0,0.001]
[1760052120037,3.21279464,4370.1,4370.0,0.001]
[1760052120239,11.5622,4370.1,4370.0,0.001]
[1760052120465,12.05479464,4370.1,4370.0,0.001]
[1760052120639,3.21279464,4370.1,4370.0,0.001]
[1760052120813,12.05379464,4370.1,4370.0,0.001]
[1760052121153,16.04761223,4370.1,4370.0,0.001]
[1760052122515,13.75933508,4370.1,4370.0,0.001]
[1760052122947,16.04761223,4370.1,4370.0,0.001]
[1760052123823,13.66661223,4370.1,4370.0,0.001]
[1760052124028,16.04761223,4370.1,4370.0,0.001]
[1760052125215,13.17401759,4370.1,4370.0,0.001]
[1760052125418,16.04790978,4370.1,4370.0,0.001]
[1760052126236,19.89676896,4370.1,4370.0,0.001]
[1760052132058,26.99676896,4370.1,4370.0,0.001]
[1760052132550,28.31320247,4370.1,4370.0,0.001]
[1760052133125,27.08845666,4370.1,4370.0,0.001]
[1760052135043,28.31320247,4370.1,4370.0,0.001]
[1760052135337,27.08845666,4370.1,4370.0,0.001]
[1760052141249,34.23245666,4370.1,4370.0,0.001]
[1760052141465,36.61345666,4370.1,4370.0,0.001]
[1760052141657,37.43393643,4370.1,4370.0,0.001]
[1760052141977,26.45485666,4370.1,4370.0,0.001]
[1760052142177,27.08845666,4370.1,4370.0,0.001]
[1760052145159,27.08780719,4370.1,4370.0,0.001]
[1760052150082,27.70328496,4370.1,4370.0,0.001]
[1760052150280,18.86228496,4370.1,4370.0,0.001]
[1760052150481,27.70328496,4370.1,4370.0,0.001]
[1760052150778,0.65884272,4370.1,4370.0,0.001]
[1760052150980,9.0076,4370.1,4370.0,0.001]
[1760052151153,12.05344272,4370.1,4370.0,0.001]
[1760052152754,11.5612,4370.1,4370.0,0.001]
[1760052160178,13.84947715,4370.1,4370.0,0.001]
[1760052160386,11.5612,4370.1,4370.0,0.001]
[1760052162759,11.5612,4370.1,4370.0,2.28932951]
[1760052162760,0.6336,4370.1,4370.0,2.28932951]
[1760052162965,7.0926,4370.1,4370.0,0.45877284]
[1760052163286,7.2592,4370.1,4370.0,0.001]
[1760052166215,0.8002,4370.1,4370.0,0.001]
[1760052166521,9.6392,4370.1,4370.0,0.001]
[1760052166889,1e-08,4370.2,4370.1,2.28827715]
[1760052167207,1e-08,4370.2,4370.1,5.82063928]
[1760052167388,1e-08,4370.2,4370.1,6.27275651]
[1760052167784,1e-08,4370.2,4370.1,5.8848608]
[1760052168097,1e-08,4370.2,4370.1,9.15387687]
[1760052168816,1e-08,4370.2,4370.1,9.24550094]
[1760052170580,1e-08,4370.2,4370.1,5.97648487]
[1760052170781,1e-08,4370.2,4370.1,5.86208487]
[1760052170991,1e-08,4370.2,4370.1,9.13110094]
[1760052174712,1e-08,4370.2,4370.1,9.74411382]
[1760052176117,1e-08,4370.2,4370.1,13.01312989]
[1760052176303,1e-08,4370.2,4370.1,9.74411382]
[1760052179029,1e-08,4370.2,4370.1,7.45583667]
[1760052179326,1e-08,4370.2,4370.1,9.74411382]
[1760052180926,1e-08,4371.1,4370.9,2.28785833]
[1760052181130,1e-08,4371.1,4371.0,5.78560789]
[1760052181443,1e-08,4371.1,4371.0,6.25240789]
[1760052181799,1e-08,4371.1,4371.0,6.93950658]
[1760052186169,1e-08,4371.1,4370.6,2.28801001]
[1760052186372,1e-08,4371.1,4370.4,7.95701607]
[1760052186538,0.1576,4371.0,4370.8,2.28786213]
[1760052186870,1e-08,4371.1,4370.8,2.28786213]